[Event "*** Titled Tuesday 3|2 Blitz"]
[Site "Chess.com"]
[Date "2016.06.07"]
[Round "2"]
[White "Fawolizzo"]
[Black "DiamondCrusher22"]
[Result "1-0"]
[WhiteElo "2008"]
[BlackElo "1834"]
[TimeControl "180+2"]
[EndTime "11:23:07 PDT"]
[Termination "Fawolizzo won by checkmate"]

1. d4 {[%clk 0:02:42]} 1... d5 {[%clk 0:02:58.5]} 2. Nf3 {[%clk 0:02:40.5]} 2...
Nf6 {[%clk 0:02:58.8]} 3. c4 {[%clk 0:02:39.9]} 3... c6 {[%clk 0:02:59.8]} 4. g3
{[%clk 0:02:40.7]} 4... e6 {[%clk 0:02:59.3]} 5. Nbd2 {[%clk 0:02:38.7]} 5...
Nbd7 {[%clk 0:02:59.4]} 6. Bg2 {[%clk 0:02:37.4]} 6... Bd6 {[%clk 0:02:55.1]} 7.
O-O {[%clk 0:02:36.8]} 7... O-O {[%clk 0:02:54]} 8. b3 {[%clk 0:02:38]} 8... h6
{[%clk 0:02:42.9]} 9. Bb2 {[%clk 0:02:37.2]} 9... Qe7 {[%clk 0:02:42.1]} 10. Ne5
{[%clk 0:02:34.1]} 10... Bxe5 {[%clk 0:02:07.7]} 11. dxe5 {[%clk 0:02:32.9]}
11... Ng4 {[%clk 0:02:08.8]} 12. Nf3 {[%clk 0:02:32.4]} 12... dxc4 {[%clk
0:02:09.7]} 13. h3 {[%clk 0:02:26.7]} 13... Rd8 {[%clk 0:01:07.2]} 14. Qc2
{[%clk 0:02:21.7]} 14... cxb3 {[%clk 0:00:57.6]} 15. axb3 {[%clk 0:02:19.7]}
15... Nxf2 {[%clk 0:00:48]} 16. Rxf2 {[%clk 0:02:17.4]} 16... Nb6 {[%clk
0:00:48.4]} 17. Raf1 {[%clk 0:02:12.9]} 17... Nd5 {[%clk 0:00:48.7]} 18. Kh2
{[%clk 0:02:12.7]} 18... Ne3 {[%clk 0:00:47.6]} 19. Qe4 {[%clk 0:02:05.9]} 19...
Nxf1+ {[%clk 0:00:46.1]} 20. Rxf1 {[%clk 0:02:06.9]} 20... Bd7 {[%clk
0:00:41.9]} 21. Qe3 {[%clk 0:01:58.4]} 21... Be8 {[%clk 0:00:38.9]} 22. Nd2
{[%clk 0:01:57.8]} 22... Rd7 {[%clk 0:00:33.4]} 23. Nc4 {[%clk 0:01:53.5]} 23...
Qb4 {[%clk 0:00:30.4]} 24. Ba3 {[%clk 0:01:50.1]} 24... Qb5 {[%clk 0:00:27.2]}
25. Nd6 {[%clk 0:01:47.8]} 25... Qb6 {[%clk 0:00:28.2]} 26. Bc5 {[%clk 0:01:47]}
26... Qc7 {[%clk 0:00:26.3]} 27. Be4 {[%clk 0:01:38.5]} 27... b6 {[%clk
0:00:26.9]} 28. Nxe8 {[%clk 0:01:38.8]} 28... Rxe8 {[%clk 0:00:26.7]} 29. Bd6
{[%clk 0:01:39.9]} 29... Qd8 {[%clk 0:00:27.2]} 30. Bxc6 {[%clk 0:01:38.8]}
30... Rxd6 {[%clk 0:00:25.4]} 31. exd6 {[%clk 0:01:38.1]} 31... Rf8 {[%clk
0:00:26.3]} 32. d7 {[%clk 0:01:37.7]} 32... Qc7 {[%clk 0:00:26.6]} 33. Qf3
{[%clk 0:01:35.2]} 33... Qd6 {[%clk 0:00:25.4]} 34. e3 {[%clk 0:01:30.8]} 34...
Qd2+ {[%clk 0:00:25.7]} 35. Rf2 {[%clk 0:01:27.6]} 35... Qc1 {[%clk 0:00:25.2]}
36. Ba4 {[%clk 0:01:15.4]} 36... Qc5 {[%clk 0:00:25.5]} 37. Rd2 {[%clk
0:01:07.8]} 37... b5 {[%clk 0:00:26.2]} 38. d8=Q {[%clk 0:01:05.3]} 38... Rxd8
{[%clk 0:00:24.3]} 39. Rxd8+ {[%clk 0:01:03.5]} 39... Kh7 {[%clk 0:00:25.1]} 40.
Qe4+ {[%clk 0:01:00.9]} 40... f5 {[%clk 0:00:24.5]} 41. Qd4 {[%clk 0:00:58.2]}
41... Qc2+ {[%clk 0:00:22.3]} 42. Qd2 {[%clk 0:00:57.3]} 42... Qc5 {[%clk
0:00:22.4]} 43. b4 {[%clk 0:00:56.1]} 43... Qc4 {[%clk 0:00:22]} 44. Bc2 {[%clk
0:00:55.6]} 44... Kg6 {[%clk 0:00:19]} 45. Rd4 {[%clk 0:00:53.3]} 45... Qc7
{[%clk 0:00:19]} 46. Bb3 {[%clk 0:00:52.5]} 46... Qe5 {[%clk 0:00:19.8]} 47. Rd6
{[%clk 0:00:48.2]} 47... Kf6 {[%clk 0:00:20.4]} 48. Qd4 {[%clk 0:00:41.4]} 48...
Kg5 {[%clk 0:00:20]} 49. Qxe5 {[%clk 0:00:40.9]} 49... g6 {[%clk 0:00:20.7]} 50.
h4+ {[%clk 0:00:36]} 50... Kg4 {[%clk 0:00:20.9]} 51. Bd1# {[%clk 0:00:36.2]}
1-0

[Event "*** Titled Tuesday 3|2 Blitz"]
[Site "Chess.com"]
[Date "2016.06.07"]
[Round "2"]
[White "MattyDPerrine"]
[Black "BahadirOzen"]
[Result "1-0"]
[WhiteElo "2257"]
[BlackElo "2521"]
[TimeControl "180+2"]
[EndTime "11:23:11 PDT"]
[Termination "MattyDPerrine won by resignation"]

1. d4 {[%clk 0:03:00.1]} 1... d6 {[%clk 0:03:00.7]} 2. c4 {[%clk 0:02:51.4]}
2... e5 {[%clk 0:03:01.4]} 3. Nf3 {[%clk 0:02:52]} 3... exd4 {[%clk 0:03:01.8]}
4. Nxd4 {[%clk 0:02:52.8]} 4... g6 {[%clk 0:03:03]} 5. e4 {[%clk 0:02:52]} 5...
Bg7 {[%clk 0:03:04]} 6. Nc3 {[%clk 0:02:51.7]} 6... Nc6 {[%clk 0:03:05.3]} 7.
Be3 {[%clk 0:02:52.7]} 7... Nge7 {[%clk 0:03:06.7]} 8. Be2 {[%clk 0:02:53.2]}
8... O-O {[%clk 0:03:08]} 9. O-O {[%clk 0:02:53.2]} 9... f5 {[%clk 0:03:09.5]}
10. exf5 {[%clk 0:02:45.6]} 10... Bxd4 {[%clk 0:03:10]} 11. Bxd4 {[%clk
0:02:46.4]} 11... Nxf5 {[%clk 0:03:11.4]} 12. Be3 {[%clk 0:02:41.4]} 12... Nxe3
{[%clk 0:03:12.3]} 13. fxe3 {[%clk 0:02:43.3]} 13... Rxf1+ {[%clk 0:03:11.5]}
14. Bxf1 {[%clk 0:02:41.2]} 14... Be6 {[%clk 0:03:13.4]} 15. Nd5 {[%clk
0:02:40.4]} 15... Bxd5 {[%clk 0:02:53.6]} 16. Qxd5+ {[%clk 0:02:37.9]} 16... Kg7
{[%clk 0:02:54.8]} 17. c5 {[%clk 0:02:33.8]} 17... dxc5 {[%clk 0:02:53]} 18.
Qxc5 {[%clk 0:02:33.7]} 18... Qe7 {[%clk 0:02:18.9]} 19. Qc3+ {[%clk 0:02:27.9]}
19... Qe5 {[%clk 0:02:18.9]} 20. Rc1 {[%clk 0:02:29.4]} 20... Qxc3 {[%clk
0:02:10.4]} 21. Rxc3 {[%clk 0:02:29.5]} 21... Rc8 {[%clk 0:02:12.3]} 22. g3
{[%clk 0:02:20.8]} 22... Kf6 {[%clk 0:02:06.9]} 23. Bg2 {[%clk 0:02:17.7]} 23...
Nd8 {[%clk 0:02:06.2]} 24. e4 {[%clk 0:02:04.7]} 24... Ne6 {[%clk 0:02:00.9]}
25. e5+ {[%clk 0:02:05.8]} 25... Kxe5 {[%clk 0:02:01.5]} 26. Re3+ {[%clk
0:02:07]} 26... Kd6 {[%clk 0:01:54]} 27. Rxe6+ {[%clk 0:02:07.9]} 27... Kxe6
{[%clk 0:01:53.8]} 28. Bh3+ {[%clk 0:02:09.2]} 28... Kd5 {[%clk 0:01:55.7]} 29.
Bxc8 {[%clk 0:02:11.1]} 29... b5 {[%clk 0:01:57.1]} 30. Kf2 {[%clk 0:02:06.3]}
30... Kd4 {[%clk 0:01:57.1]} 31. Bd7 {[%clk 0:01:57.6]} 31... b4 {[%clk
0:01:55.6]} 32. Ke2 {[%clk 0:01:56]} 32... c5 {[%clk 0:01:55.9]} 33. Bb5 {[%clk
0:01:39.1]} 33... c4 {[%clk 0:01:56.3]} 34. Kd2 {[%clk 0:01:39.8]} 34... a5
{[%clk 0:01:56.5]} 35. Ba6 {[%clk 0:01:20.4]} 35... g5 {[%clk 0:01:38.3]} 36. g4
{[%clk 0:01:11.7]} 36... h6 {[%clk 0:01:36.4]} 37. h3 {[%clk 0:01:12.2]} 37...
Kc5 {[%clk 0:01:04.4]} 38. Ke3 {[%clk 0:01:12.4]} 38... Kd5 {[%clk 0:01:05.6]}
39. Bb7+ {[%clk 0:01:10.7]} 39... Kc5 {[%clk 0:01:06.3]} 40. Ke4 {[%clk
0:01:11.1]} 40... a4 {[%clk 0:01:00.1]} 41. Ba6 {[%clk 0:00:52.8]} 41... c3
{[%clk 0:00:29.1]} 42. bxc3 {[%clk 0:00:53.7]} 42... bxc3 {[%clk 0:00:31]} 43.
Kd3 {[%clk 0:00:45]} 43... Kb4 {[%clk 0:00:30.9]} 44. Kc2 {[%clk 0:00:43.5]}
44... Ka3 {[%clk 0:00:29.7]} 45. Bc4 {[%clk 0:00:44.6]} 45... Kb4 {[%clk
0:00:30.7]} 46. Bf7 {[%clk 0:00:38.8]} 46... Ka3 {[%clk 0:00:31.1]} 47. Kxc3
{[%clk 0:00:26.3]} 47... h5 {[%clk 0:00:32.3]} 48. Bxh5 {[%clk 0:00:27.8]} 48...
Kxa2 {[%clk 0:00:32.4]} 49. Bf7+ {[%clk 0:00:28.7]} 49... Ka3 {[%clk 0:00:32.2]}
50. Kd4 {[%clk 0:00:29.7]} 50... Kb2 {[%clk 0:00:30.6]} 51. Ke5 {[%clk
0:00:30.6]} 51... a3 {[%clk 0:00:31.1]} 52. Kf6 {[%clk 0:00:31.6]} 52... a2
{[%clk 0:00:32.3]} 53. Bxa2 {[%clk 0:00:32.3]} 53... Kxa2 {[%clk 0:00:33.5]} 54.
Kxg5 {[%clk 0:00:33.4]} 1-0

[Event "*** Titled Tuesday 3|2 Blitz"]
[Site "Chess.com"]
[Date "2016.06.07"]
[Round "2"]
[White "pKiLz5Rn9b"]
[Black "Bigfish1995"]
[Result "1-0"]
[WhiteElo "2477"]
[BlackElo "2601"]
[TimeControl "180+2"]
[EndTime "11:23:20 PDT"]
[Termination "pKiLz5Rn9b won on time"]

1. e4 {[%clk 0:03:01.9]} 1... g6 {[%clk 0:02:49.5]} 2. d4 {[%clk 0:03:02.8]}
2... Bg7 {[%clk 0:02:51]} 3. h3 {[%clk 0:03:03.2]} 3... d6 {[%clk 0:02:51.1]} 4.
Nc3 {[%clk 0:03:03.8]} 4... Nd7 {[%clk 0:02:52.6]} 5. Nf3 {[%clk 0:03:05.1]}
5... a6 {[%clk 0:02:53.8]} 6. a4 {[%clk 0:03:05.9]} 6... e6 {[%clk 0:02:54.8]}
7. Be2 {[%clk 0:03:06.1]} 7... Ne7 {[%clk 0:02:56]} 8. O-O {[%clk 0:03:07.1]}
8... O-O {[%clk 0:02:57.6]} 9. a5 {[%clk 0:03:05.5]} 9... c5 {[%clk 0:02:53.7]}
10. Be3 {[%clk 0:03:06]} 10... Nc6 {[%clk 0:02:50.1]} 11. Qd2 {[%clk 0:02:48.5]}
11... Nxa5 {[%clk 0:02:49.9]} 12. Rfd1 {[%clk 0:02:49.3]} 12... c4 {[%clk
0:02:43.3]} 13. d5 {[%clk 0:02:37.3]} 13... e5 {[%clk 0:02:39.4]} 14. Rdb1
{[%clk 0:02:08.5]} 14... f5 {[%clk 0:02:06.1]} 15. Qe1 {[%clk 0:01:22.3]} 15...
Nf6 {[%clk 0:02:00.6]} 16. exf5 {[%clk 0:01:16.3]} 16... Bxf5 {[%clk 0:02:00]}
17. Qd2 {[%clk 0:01:06.2]} 17... b5 {[%clk 0:01:59.6]} 18. Ng5 {[%clk
0:01:04.9]} 18... Nb7 {[%clk 0:01:52.6]} 19. Bf3 {[%clk 0:00:59]} 19... Qe7
{[%clk 0:01:46.5]} 20. Ne6 {[%clk 0:00:55.1]} 20... Rf7 {[%clk 0:01:36.4]} 21.
Ng5 {[%clk 0:00:51.9]} 21... Rff8 {[%clk 0:01:37.2]} 22. Ne6 {[%clk 0:00:53.2]}
22... Rfc8 {[%clk 0:01:33.1]} 23. g4 {[%clk 0:00:39]} 23... e4 {[%clk
0:00:53.9]} 24. gxf5 {[%clk 0:00:20.7]} 24... exf3 {[%clk 0:00:54.5]} 25. Qd1
{[%clk 0:00:22.2]} 25... Nd8 {[%clk 0:00:39.1]} 26. Qxf3 {[%clk 0:00:22.1]}
26... Nxe6 {[%clk 0:00:40.1]} 27. fxe6 {[%clk 0:00:20.7]} 27... Rf8 {[%clk
0:00:37.1]} 28. Qg2 {[%clk 0:00:21.4]} 28... b4 {[%clk 0:00:32.8]} 29. Ne2
{[%clk 0:00:22.1]} 29... Nh5 {[%clk 0:00:29.9]} 30. c3 {[%clk 0:00:19.2]} 30...
a5 {[%clk 0:00:24]} 31. Rd1 {[%clk 0:00:16.1]} 31... Qb7 {[%clk 0:00:20.7]} 32.
Nd4 {[%clk 0:00:16.9]} 32... Nf4 {[%clk 0:00:19.5]} 33. Bxf4 {[%clk 0:00:16.9]}
33... Rxf4 {[%clk 0:00:21.2]} 34. Nc6 {[%clk 0:00:18.5]} 34... bxc3 {[%clk
0:00:22.1]} 35. bxc3 {[%clk 0:00:19.5]} 35... Bxc3 {[%clk 0:00:23.1]} 36. Rab1
{[%clk 0:00:21.1]} 36... Bb4 {[%clk 0:00:24.3]} 37. e7 {[%clk 0:00:21.4]} 37...
Re8 {[%clk 0:00:24.6]} 38. Nxa5 {[%clk 0:00:20.3]} 38... Qa6 {[%clk 0:00:22.5]}
39. Nc6 {[%clk 0:00:21.3]} 39... Bc5 {[%clk 0:00:24]} 40. Rb8 {[%clk 0:00:21.3]}
40... Rxb8 {[%clk 0:00:22.6]} 41. Nxb8 {[%clk 0:00:23.2]} 41... Qc8 {[%clk
0:00:23.7]} 42. Re1 {[%clk 0:00:21.8]} 42... Qe8 {[%clk 0:00:22.5]} 43. Re2
{[%clk 0:00:23.4]} 43... Kf7 {[%clk 0:00:20.3]} 44. Nc6 {[%clk 0:00:24.7]} 44...
c3 {[%clk 0:00:21.1]} 45. Qg3 {[%clk 0:00:25.1]} 45... Rf5 {[%clk 0:00:22.1]}
46. Qxc3 {[%clk 0:00:24.6]} 46... Rxd5 {[%clk 0:00:20.9]} 47. Qc4 {[%clk
0:00:25.2]} 1-0

[Event "*** Titled Tuesday 3|2 Blitz"]
[Site "Chess.com"]
[Date "2016.06.07"]
[Round "2"]
[White "GMBenjaminBok"]
[Black "Boryboy"]
[Result "0-1"]
[WhiteElo "2602"]
[BlackElo "2538"]
[TimeControl "180+2"]
[EndTime "11:23:23 PDT"]
[Termination "Boryboy won by resignation"]

1. e4 {[%clk 0:03:01.9]} 1... e6 {[%clk 0:03:01.2]} 2. d4 {[%clk 0:03:02]} 2...
d5 {[%clk 0:02:59.6]} 3. Nc3 {[%clk 0:03:03.3]} 3... Bb4 {[%clk 0:02:58.8]} 4.
e5 {[%clk 0:03:04.3]} 4... c5 {[%clk 0:02:53.4]} 5. a3 {[%clk 0:03:05.3]} 5...
Bxc3+ {[%clk 0:02:50.5]} 6. bxc3 {[%clk 0:03:07.2]} 6... Qa5 {[%clk 0:02:48.4]}
7. Bd2 {[%clk 0:03:07.5]} 7... Qa4 {[%clk 0:02:45.8]} 8. Qg4 {[%clk 0:03:07.7]}
8... g6 {[%clk 0:02:44.9]} 9. Nf3 {[%clk 0:03:02.8]} 9... Nc6 {[%clk 0:02:44.2]}
10. Be2 {[%clk 0:03:00.9]} 10... Bd7 {[%clk 0:02:44.4]} 11. Qh4 {[%clk
0:03:01.1]} 11... Nge7 {[%clk 0:02:38]} 12. O-O {[%clk 0:02:56.2]} 12... h6
{[%clk 0:02:36]} 13. Bg5 {[%clk 0:02:42]} 13... Nf5 {[%clk 0:02:32.1]} 14. Qh3
{[%clk 0:02:43]} 14... cxd4 {[%clk 0:02:33.1]} 15. Bf6 {[%clk 0:02:41.8]} 15...
Rg8 {[%clk 0:02:28.1]} 16. Rab1 {[%clk 0:02:27.1]} 16... Qxc2 {[%clk 0:02:14.9]}
17. Rfe1 {[%clk 0:02:25.8]} 17... d3 {[%clk 0:02:11.4]} 18. Bf1 {[%clk
0:02:23.5]} 18... Qxc3 {[%clk 0:02:01.6]} 19. Rxb7 {[%clk 0:01:59.2]} 19... Ncd4
{[%clk 0:01:20.8]} 20. Reb1 {[%clk 0:01:53.5]} 20... Ne2+ {[%clk 0:00:55.2]} 21.
Kh1 {[%clk 0:01:28.9]} 21... Qc5 {[%clk 0:00:55.2]} 22. Bxe2 {[%clk 0:00:17.7]}
22... dxe2 {[%clk 0:00:55.4]} 23. Kg1 {[%clk 0:00:13]} 23... Rc8 {[%clk
0:00:51.9]} 24. Re1 {[%clk 0:00:12.2]} 24... Bb5 {[%clk 0:00:38.3]} 25. g4
{[%clk 0:00:11.4]} 25... Ba6 {[%clk 0:00:34.1]} 26. Rbb1 {[%clk 0:00:10.1]}
26... Ne7 {[%clk 0:00:29]} 27. Kg2 {[%clk 0:00:09.1]} 27... d4 {[%clk 0:00:29]}
28. Qxh6 {[%clk 0:00:09.1]} 28... Qd5 {[%clk 0:00:28.5]} 29. Qg5 {[%clk
0:00:04.9]} 29... Bb7 {[%clk 0:00:28.3]} 30. Qf4 {[%clk 0:00:04.5]} 30... d3
{[%clk 0:00:25]} 31. Rec1 {[%clk 0:00:02.4]} 31... Rxc1 {[%clk 0:00:24.4]} 32.
Rxc1 {[%clk 0:00:04.3]} 32... Nc6 {[%clk 0:00:24.1]} 33. Kg3 {[%clk 0:00:04.4]}
33... Kd7 {[%clk 0:00:19.3]} 34. Qe3 {[%clk 0:00:05]} 34... Rc8 {[%clk 0:00:14]}
35. Rc5 {[%clk 0:00:05.4]} 35... Qb3 {[%clk 0:00:13.9]} 36. Nd2 {[%clk 0:00:06]}
36... Qxa3 {[%clk 0:00:14]} 37. Rc4 {[%clk 0:00:02.2]} 37... Nb4 {[%clk
0:00:13.3]} 38. Rd4+ {[%clk 0:00:02.8]} 38... Nd5 {[%clk 0:00:14.4]} 39. Rxd3
{[%clk 0:00:03.6]} 39... Qxd3 {[%clk 0:00:15.7]} 40. Qxd3 {[%clk 0:00:04.6]}
40... e1=Q {[%clk 0:00:17.1]} 41. Nf3 {[%clk 0:00:05.1]} 41... Qb4 {[%clk
0:00:17.2]} 42. Ng5 {[%clk 0:00:05.3]} 42... Rc3 {[%clk 0:00:16.8]} 0-1

[Event "*** Titled Tuesday 3|2 Blitz"]
[Site "Chess.com"]
[Date "2016.06.07"]
[Round "2"]
[White "FearlessKing64"]
[Black "talaicito"]
[Result "1-0"]
[WhiteElo "2082"]
[BlackElo "1986"]
[TimeControl "180+2"]
[EndTime "11:23:27 PDT"]
[Termination "FearlessKing64 won by resignation"]

1. e4 {[%clk 0:03:01.9]} 1... e6 {[%clk 0:03:00.4]} 2. d4 {[%clk 0:03:02.2]}
2... d5 {[%clk 0:03:02]} 3. Nd2 {[%clk 0:03:02.8]} 3... Nf6 {[%clk 0:03:02.4]}
4. e5 {[%clk 0:03:03.8]} 4... Nfd7 {[%clk 0:03:03.3]} 5. f4 {[%clk 0:03:04.9]}
5... c5 {[%clk 0:03:04.9]} 6. c3 {[%clk 0:03:06.3]} 6... Nc6 {[%clk 0:03:06]} 7.
Ndf3 {[%clk 0:03:07.3]} 7... Qb6 {[%clk 0:03:02.3]} 8. a3 {[%clk 0:03:07.4]}
8... a5 {[%clk 0:03:00.5]} 9. b3 {[%clk 0:03:07.8]} 9... Be7 {[%clk 0:02:46.2]}
10. h4 {[%clk 0:03:08.1]} 10... a4 {[%clk 0:02:39.5]} 11. b4 {[%clk 0:03:07.6]}
11... cxd4 {[%clk 0:02:36.5]} 12. cxd4 {[%clk 0:03:09.5]} 12... Na7 {[%clk
0:02:36.7]} 13. Bd3 {[%clk 0:03:01.1]} 13... Nb5 {[%clk 0:02:36.9]} 14. Ne2
{[%clk 0:02:58.5]} 14... Nb8 {[%clk 0:02:31.5]} 15. O-O {[%clk 0:02:31]} 15...
Bd7 {[%clk 0:02:31.6]} 16. Bc2 {[%clk 0:02:22]} 16... Nc6 {[%clk 0:02:24]} 17.
h5 {[%clk 0:02:22.7]} 17... h6 {[%clk 0:02:18.9]} 18. g4 {[%clk 0:02:21]} 18...
f6 {[%clk 0:01:30]} 19. Bg6+ {[%clk 0:02:15.3]} 19... Kd8 {[%clk 0:01:30.5]} 20.
Kg2 {[%clk 0:02:14.8]} 20... Rf8 {[%clk 0:01:24.1]} 21. Bc2 {[%clk 0:01:44.2]}
21... Qa6 {[%clk 0:01:13.9]} 22. Bb2 {[%clk 0:01:32.6]} 22... Nc7 {[%clk
0:01:04.5]} 23. Bd3 {[%clk 0:01:31.9]} 23... b5 {[%clk 0:01:04.3]} 24. Rc1
{[%clk 0:01:24.8]} 24... Rc8 {[%clk 0:01:00.9]} 25. Rc5 {[%clk 0:01:23.4]} 25...
Bxc5 {[%clk 0:00:52.8]} 26. dxc5 {[%clk 0:01:24]} 26... Ne8 {[%clk 0:00:46.7]}
27. f5 {[%clk 0:01:16.9]} 27... fxe5 {[%clk 0:00:40.8]} 28. Nxe5 {[%clk
0:01:12]} 28... Nxe5 {[%clk 0:00:36.6]} 29. Bxe5 {[%clk 0:01:12.6]} 29... exf5
{[%clk 0:00:37.4]} 30. Nd4 {[%clk 0:00:49.1]} 30... g6 {[%clk 0:00:28.9]} 31.
gxf5 {[%clk 0:00:40.6]} 31... gxf5 {[%clk 0:00:26.1]} 32. Bxf5 {[%clk
0:00:31.9]} 32... Rg8+ {[%clk 0:00:17]} 33. Kh1 {[%clk 0:00:28.4]} 33... Rg5
{[%clk 0:00:13.5]} 34. Bg6 {[%clk 0:00:25.2]} 34... Bg4 {[%clk 0:00:10.9]} 35.
Qe1 {[%clk 0:00:21]} 35... Bxh5 {[%clk 0:00:09.8]} 36. Bxe8 {[%clk 0:00:20.5]}
36... Bxe8 {[%clk 0:00:09.5]} 37. Bf6+ {[%clk 0:00:18.9]} 37... Kc7 {[%clk
0:00:10.4]} 38. Qe7+ {[%clk 0:00:18.6]} 38... Kb8 {[%clk 0:00:10.1]} 39. Bxg5
{[%clk 0:00:18.6]} 39... hxg5 {[%clk 0:00:10.4]} 40. Ne6 {[%clk 0:00:17.6]}
40... Bc6 {[%clk 0:00:09]} 41. Qd6+ {[%clk 0:00:17]} 41... Ka8 {[%clk
0:00:09.3]} 42. Rf7 {[%clk 0:00:18.3]} 42... d4+ {[%clk 0:00:09.3]} 43. Kg1
{[%clk 0:00:18.4]} 43... d3 {[%clk 0:00:08.5]} 44. Nc7+ {[%clk 0:00:17.6]} 44...
Rxc7 {[%clk 0:00:09]} 45. Qxc7 {[%clk 0:00:19.2]} 45... Bb7 {[%clk 0:00:08]} 46.
Rf8+ {[%clk 0:00:16.1]} 46... Bc8 {[%clk 0:00:07.2]} 47. Rxc8+ {[%clk
0:00:15.9]} 47... Qxc8 {[%clk 0:00:07.9]} 48. Qxc8+ {[%clk 0:00:17.4]} 48... Ka7
{[%clk 0:00:08.6]} 49. Qc7+ {[%clk 0:00:17]} 49... Ka8 {[%clk 0:00:08.8]} 50. c6
{[%clk 0:00:18.2]} 1-0

[Event "*** Titled Tuesday 3|2 Blitz"]
[Site "Chess.com"]
[Date "2016.06.07"]
[Round "2"]
[White "underdogchss"]
[Black "ChessMavenYeti"]
[Result "1-0"]
[WhiteElo "2338"]
[BlackElo "2138"]
[TimeControl "180+2"]
[EndTime "11:23:50 PDT"]
[Termination "underdogchss won by resignation"]

1. d4 {[%clk 0:03:01.9]} 1... e6 {[%clk 0:02:50.2]} 2. Nf3 {[%clk 0:03:01.5]}
2... d5 {[%clk 0:02:50.5]} 3. c4 {[%clk 0:03:02.5]} 3... Be7 {[%clk 0:02:50.4]}
4. Nc3 {[%clk 0:03:03.4]} 4... Nf6 {[%clk 0:02:50.7]} 5. Bg5 {[%clk 0:03:04.1]}
5... O-O {[%clk 0:02:51.4]} 6. e3 {[%clk 0:03:05.4]} 6... h6 {[%clk 0:02:51.6]}
7. Bh4 {[%clk 0:03:06.7]} 7... b6 {[%clk 0:02:52.1]} 8. Bd3 {[%clk 0:03:07.1]}
8... Bb7 {[%clk 0:02:51.9]} 9. O-O {[%clk 0:03:07.8]} 9... dxc4 {[%clk
0:02:52.3]} 10. Bxc4 {[%clk 0:03:08.7]} 10... Ne4 {[%clk 0:02:53.3]} 11. Bg3
{[%clk 0:03:08.6]} 11... Nd7 {[%clk 0:02:49.1]} 12. Qe2 {[%clk 0:03:00.2]} 12...
c5 {[%clk 0:02:48.6]} 13. Nxe4 {[%clk 0:02:55.3]} 13... Bxe4 {[%clk 0:02:48.3]}
14. Rfd1 {[%clk 0:02:51]} 14... Qc8 {[%clk 0:01:55.6]} 15. Rac1 {[%clk
0:02:48.2]} 15... Nf6 {[%clk 0:01:40.3]} 16. dxc5 {[%clk 0:02:41]} 16... bxc5
{[%clk 0:01:39.3]} 17. Nd2 {[%clk 0:02:33.1]} 17... Bd5 {[%clk 0:01:36.6]} 18.
Nb3 {[%clk 0:02:31.2]} 18... Rd8 {[%clk 0:01:28.2]} 19. Ba6 {[%clk 0:02:23.8]}
19... Qc6 {[%clk 0:01:20.3]} 20. f3 {[%clk 0:02:10]} 20... Bxb3 {[%clk
0:01:06.5]} 21. axb3 {[%clk 0:02:03.2]} 21... Rxd1+ {[%clk 0:01:07]} 22. Rxd1
{[%clk 0:02:04]} 22... Rd8 {[%clk 0:01:08.3]} 23. Rxd8+ {[%clk 0:02:03.5]} 23...
Bxd8 {[%clk 0:01:09]} 24. e4 {[%clk 0:02:01.4]} 24... Nh5 {[%clk 0:01:06.1]} 25.
Bb8 {[%clk 0:01:40.4]} 25... Qb6 {[%clk 0:01:02.4]} 26. Qb5 {[%clk 0:01:31.1]}
26... Qxb5 {[%clk 0:01:01]} 27. Bxb5 {[%clk 0:01:31.6]} 27... Bb6 {[%clk
0:01:02.9]} 28. Bc4 {[%clk 0:01:32]} 28... g5 {[%clk 0:00:44.6]} 29. g3 {[%clk
0:01:32.1]} 29... Nf6 {[%clk 0:00:43.6]} 30. g4 {[%clk 0:01:26.8]} 30... Nd7
{[%clk 0:00:41.8]} 31. Bd6 {[%clk 0:01:27.5]} 31... Kg7 {[%clk 0:00:42.9]} 32.
Kg2 {[%clk 0:01:26]} 32... e5 {[%clk 0:00:41.2]} 33. Bb5 {[%clk 0:01:20.5]}
33... Nf6 {[%clk 0:00:32.2]} 34. Bxe5 {[%clk 0:01:21]} 34... Kg6 {[%clk
0:00:33.8]} 35. Kf1 {[%clk 0:01:17.1]} 35... Ng8 {[%clk 0:00:31.8]} 36. Bd6
{[%clk 0:01:16.9]} 36... h5 {[%clk 0:00:32.5]} 37. gxh5+ {[%clk 0:01:16.6]}
37... Kxh5 {[%clk 0:00:33.6]} 38. Bc4 {[%clk 0:01:14.6]} 38... Nh6 {[%clk
0:00:30.5]} 39. Kg2 {[%clk 0:01:14.5]} 39... g4 {[%clk 0:00:31.4]} 40. f4 {[%clk
0:01:14.3]} 40... f6 {[%clk 0:00:28.4]} 41. Bf8 {[%clk 0:01:14.6]} 41... Kg6
{[%clk 0:00:27.5]} 42. Kg3 {[%clk 0:01:14.6]} 42... f5 {[%clk 0:00:26.4]} 43.
Bxh6 {[%clk 0:01:14.7]} 43... Kxh6 {[%clk 0:00:27.4]} 44. exf5 {[%clk
0:01:15.3]} 44... Kh5 {[%clk 0:00:27.5]} 45. Bf7+ {[%clk 0:01:15.4]} 45... Kh6
{[%clk 0:00:28.6]} 46. Kxg4 {[%clk 0:01:16.7]} 46... Ba5 {[%clk 0:00:29.3]} 47.
f6 {[%clk 0:01:16.7]} 47... Bd2 {[%clk 0:00:26.1]} 48. h4 {[%clk 0:01:15.5]}
48... Bc1 {[%clk 0:00:26.9]} 49. Be8 {[%clk 0:01:13.6]} 49... Bxb2 {[%clk
0:00:25.4]} 50. Kf5 {[%clk 0:01:13.6]} 50... a5 {[%clk 0:00:24.7]} 51. Bb5
{[%clk 0:01:08.6]} 51... Bc3 {[%clk 0:00:24.8]} 52. Bc4 {[%clk 0:01:09.4]} 52...
Bb2 {[%clk 0:00:24.2]} 53. Bd3 {[%clk 0:01:10.1]} 53... Bc3 {[%clk 0:00:24.4]}
54. Ke6 {[%clk 0:01:10.1]} 54... Kh5 {[%clk 0:00:22.2]} 55. f5 {[%clk
0:01:02.7]} 55... Kxh4 {[%clk 0:00:21.5]} 56. f7 {[%clk 0:01:03.9]} 56... Bg7
{[%clk 0:00:21.8]} 57. Ke7 {[%clk 0:00:55.7]} 57... Kg5 {[%clk 0:00:21.6]} 58.
f8=Q {[%clk 0:00:55.6]} 58... Bxf8+ {[%clk 0:00:23.1]} 59. Kxf8 {[%clk 0:00:57]}
59... c4 {[%clk 0:00:25]} 60. Bxc4 {[%clk 0:00:42.2]} 60... Kxf5 {[%clk
0:00:24.7]} 61. Bb5 {[%clk 0:00:42.8]} 61... Ke5 {[%clk 0:00:21.7]} 62. Ba4
{[%clk 0:00:44]} 62... Kd6 {[%clk 0:00:23.6]} 63. Kf7 {[%clk 0:00:45]} 63... Kc5
{[%clk 0:00:24.9]} 64. Ke6 {[%clk 0:00:46.1]} 64... Kb6 {[%clk 0:00:24.8]} 65.
Kd5 {[%clk 0:00:47.3]} 65... Ka6 {[%clk 0:00:26.6]} 66. Kc5 {[%clk 0:00:48.7]}
1-0